[Event "Early-Titled-Tuesday-Blitz-June-18-2024"]
[Site "Chess.com"]
[Date "2024.06.18"]
[Round "9"]
[White "Arteler"]
[Black "Boudicca64"]
[Result "1-0"]
[WhiteElo "2208"]
[BlackElo "1851"]
[TimeControl "180+1"]
[EndTime "9:46:32 PDT"]
[Termination "Arteler won on time"]

1. e4 {[%clk 0:03:00.9]} 1... g6 {[%clk 0:02:57]} 2. Nf3 {[%clk 0:02:58.1]} 2...
Bg7 {[%clk 0:02:56.6]} 3. d4 {[%clk 0:02:57.1]} 3... c5 {[%clk 0:02:56.2]} 4.
Be3 {[%clk 0:02:54.8]} 4... Qa5+ {[%clk 0:02:54.5]} 5. Nc3 {[%clk 0:02:51]} 5...
Nf6 {[%clk 0:02:52.6]} 6. Qd2 {[%clk 0:02:47.8]} 6... Ng4 {[%clk 0:02:50.1]} 7.
Bg5 {[%clk 0:02:22.8]} 7... cxd4 {[%clk 0:02:27.7]} 8. Nd5 {[%clk 0:02:20]} 8...
Qxd2+ {[%clk 0:02:16.2]} 9. Nxd2 {[%clk 0:02:15.9]} 9... f6 {[%clk 0:01:56.5]}
10. Nc7+ {[%clk 0:01:29.2]} 10... Kd8 {[%clk 0:01:52.8]} 11. Bf4 {[%clk
0:01:21.9]} 11... e5 {[%clk 0:01:49.8]} 12. Nxa8 {[%clk 0:01:13.4]} 12... exf4
{[%clk 0:01:47.8]} 13. Nf3 {[%clk 0:01:02.2]} 13... b6 {[%clk 0:01:33.2]} 14. h3
{[%clk 0:00:54.2]} 14... Ne5 {[%clk 0:01:29.6]} 15. Nxd4 {[%clk 0:00:49.2]}
15... Bb7 {[%clk 0:01:27]} 16. Nxb6 {[%clk 0:00:49.7]} 16... axb6 {[%clk
0:01:25]} 17. f3 {[%clk 0:00:49.1]} 17... Nbc6 {[%clk 0:01:19.4]} 18. c3 {[%clk
0:00:47.6]} 18... Ke7 {[%clk 0:01:13.8]} 19. Kf2 {[%clk 0:00:42.8]} 19... Rd8
{[%clk 0:01:03.3]} 20. Be2 {[%clk 0:00:41.3]} 20... d5 {[%clk 0:01:00.6]} 21.
Nxc6+ {[%clk 0:00:35.7]} 21... Bxc6 {[%clk 0:00:58.5]} 22. exd5 {[%clk
0:00:35.9]} 22... Bxd5 {[%clk 0:00:56]} 23. Rhd1 {[%clk 0:00:35.7]} 23... f5
{[%clk 0:00:19.5]} 24. Rd2 {[%clk 0:00:32.3]} 24... Bf6 {[%clk 0:00:16.3]} 25.
Rad1 {[%clk 0:00:30.5]} 25... Ke6 {[%clk 0:00:15.5]} 26. c4 {[%clk 0:00:27.7]}
26... Nxc4 {[%clk 0:00:12.6]} 27. Bxc4 {[%clk 0:00:27.3]} 27... Bxc4 {[%clk
0:00:12.4]} 28. Rxd8 {[%clk 0:00:27.9]} 28... Bxd8 {[%clk 0:00:11.4]} 29. Rxd8
{[%clk 0:00:28.8]} 29... Bxa2 {[%clk 0:00:10.8]} 30. Rb8 {[%clk 0:00:29.4]}
30... Kd6 {[%clk 0:00:08.7]} 31. Rxb6+ {[%clk 0:00:29]} 31... Kc5 {[%clk
0:00:08.5]} 32. Ra6 {[%clk 0:00:29.6]} 32... Bc4 {[%clk 0:00:07.2]} 33. Ra7
{[%clk 0:00:30.2]} 33... Kb4 {[%clk 0:00:05.2]} 34. Rxh7 {[%clk 0:00:28.6]}
34... Kb3 {[%clk 0:00:04.8]} 35. Rb7+ {[%clk 0:00:29.2]} 35... Kc2 {[%clk
0:00:03.6]} 36. Rc7 {[%clk 0:00:28.1]} 36... Kd3 {[%clk 0:00:02.8]} 37. g3
{[%clk 0:00:27.3]} 37... Bb3 {[%clk 0:00:01.6]} 38. Rc3+ {[%clk 0:00:26.7]} 1-0

[Event "Early-Titled-Tuesday-Blitz-June-18-2024"]
[Site "Chess.com"]
[Date "2024.06.18"]
[Round "9"]
[White "WilliamAlfaroCaracas"]
[Black "DanyKopy"]
[Result "0-1"]
[WhiteElo "2370"]
[BlackElo "2568"]
[TimeControl "180+1"]
[EndTime "9:46:34 PDT"]
[Termination "DanyKopy won by resignation"]

1. Nf3 {[%clk 0:03:00.9]} 1... d5 {[%clk 0:02:57]} 2. c4 {[%clk 0:03:00.4]} 2...
e6 {[%clk 0:02:51.9]} 3. d4 {[%clk 0:02:57.1]} 3... Nf6 {[%clk 0:02:51.6]} 4.
Nc3 {[%clk 0:02:57.6]} 4... Be7 {[%clk 0:02:51.5]} 5. Bg5 {[%clk 0:02:56.7]}
5... O-O {[%clk 0:02:49.8]} 6. cxd5 {[%clk 0:02:56.9]} 6... exd5 {[%clk
0:02:49.2]} 7. e3 {[%clk 0:02:56.7]} 7... c6 {[%clk 0:02:48.8]} 8. Bd3 {[%clk
0:02:55.7]} 8... h6 {[%clk 0:02:46]} 9. Bh4 {[%clk 0:02:55.1]} 9... Re8 {[%clk
0:02:46.3]} 10. Qc2 {[%clk 0:02:53.3]} 10... Ne4 {[%clk 0:02:42.4]} 11. Bxe4
{[%clk 0:02:41.6]} 11... Bxh4 {[%clk 0:02:30.6]} 12. Bh7+ {[%clk 0:02:39.6]}
12... Kh8 {[%clk 0:02:29.5]} 13. O-O-O {[%clk 0:02:08.5]} 13... Bxf2 {[%clk
0:02:14.8]} 14. Qxf2 {[%clk 0:02:00.7]} 14... Kxh7 {[%clk 0:02:15]} 15. Ne5
{[%clk 0:01:59.8]} 15... Be6 {[%clk 0:02:02.3]} 16. Nxf7 {[%clk 0:01:39.1]}
16... Bxf7 {[%clk 0:01:59.9]} 17. Qxf7 {[%clk 0:01:37.2]} 17... Rxe3 {[%clk
0:01:58.1]} 18. Rhe1 {[%clk 0:01:34.4]} 18... Rxe1 {[%clk 0:00:36.6]} 19. Rxe1
{[%clk 0:01:35.3]} 19... Qg5+ {[%clk 0:00:36.8]} 20. Kb1 {[%clk 0:01:27]} 20...
Qg6+ {[%clk 0:00:36.7]} 21. Qxg6+ {[%clk 0:01:24.9]} 21... Kxg6 {[%clk
0:00:37.6]} 22. Re7 {[%clk 0:01:23.3]} 22... b6 {[%clk 0:00:23.6]} 23. Re8
{[%clk 0:01:19.9]} 23... Kf7 {[%clk 0:00:23.6]} 24. Rc8 {[%clk 0:01:18.6]} 24...
Ke7 {[%clk 0:00:23.2]} 25. Ne2 {[%clk 0:01:10]} 25... Kd7 {[%clk 0:00:23.2]} 26.
Rg8 {[%clk 0:01:07.3]} 26... Kc7 {[%clk 0:00:22.8]} 27. Rxg7+ {[%clk 0:01:02.8]}
27... Nd7 {[%clk 0:00:22.6]} 28. Nf4 {[%clk 0:00:59.5]} 28... Re8 {[%clk
0:00:20.6]} 29. g3 {[%clk 0:00:52.9]} 29... Re4 {[%clk 0:00:17.2]} 30. Kc2
{[%clk 0:00:53.2]} 30... Re1 {[%clk 0:00:07.8]} 31. Kd2 {[%clk 0:00:51.4]} 31...
Rh1 {[%clk 0:00:07.7]} 32. h4 {[%clk 0:00:50.4]} 32... Kc8 {[%clk 0:00:05.8]}
33. Rf7 {[%clk 0:00:37.2]} 33... b5 {[%clk 0:00:05.3]} 34. Rh7 {[%clk 0:00:30]}
34... Nf6 {[%clk 0:00:04.3]} 35. Rxh6 {[%clk 0:00:29]} 35... Ne4+ {[%clk
0:00:04.7]} 36. Ke3 {[%clk 0:00:27.1]} 36... Nxg3 {[%clk 0:00:05]} 37. Rxc6+
{[%clk 0:00:26.7]} 37... Kb7 {[%clk 0:00:03.6]} 38. Rh6 {[%clk 0:00:25.2]} 38...
Nf5+ {[%clk 0:00:03.6]} 39. Kd3 {[%clk 0:00:24.5]} 39... Nxh6 {[%clk 0:00:04.5]}
0-1

[Event "Early-Titled-Tuesday-Blitz-June-18-2024"]
[Site "Chess.com"]
[Date "2024.06.18"]
[Round "9"]
[White "pinelone"]
[Black "elizabethcastaneda"]
[Result "1-0"]
[WhiteElo "2480"]
[BlackElo "2215"]
[TimeControl "180+1"]
[EndTime "9:46:36 PDT"]
[Termination "pinelone won by resignation"]

1. Nf3 {[%clk 0:03:00.9]} 1... Nf6 {[%clk 0:02:59.6]} 2. c4 {[%clk 0:03:00.4]}
2... g6 {[%clk 0:02:59.7]} 3. b3 {[%clk 0:03:00.8]} 3... Bg7 {[%clk 0:02:59.8]}
4. Bb2 {[%clk 0:03:01.4]} 4... O-O {[%clk 0:02:59.9]} 5. g3 {[%clk 0:03:01.9]}
5... d6 {[%clk 0:02:59]} 6. Bg2 {[%clk 0:03:02.2]} 6... e5 {[%clk 0:02:57.9]} 7.
d3 {[%clk 0:03:02.5]} 7... Nh5 {[%clk 0:02:53.6]} 8. Nc3 {[%clk 0:03:01.1]} 8...
f5 {[%clk 0:02:53.7]} 9. O-O {[%clk 0:02:58.7]} 9... Nc6 {[%clk 0:02:53.6]} 10.
Qd2 {[%clk 0:02:58.2]} 10... h6 {[%clk 0:02:43.2]} 11. Nd5 {[%clk 0:02:58]}
11... Be6 {[%clk 0:02:42]} 12. e3 {[%clk 0:02:43.3]} 12... Qd7 {[%clk
0:02:38.1]} 13. Rae1 {[%clk 0:02:31.7]} 13... g5 {[%clk 0:02:34]} 14. Rd1 {[%clk
0:02:06.2]} 14... f4 {[%clk 0:02:22.6]} 15. exf4 {[%clk 0:02:02.2]} 15... gxf4
{[%clk 0:02:21.8]} 16. d4 {[%clk 0:01:57]} 16... e4 {[%clk 0:02:08.9]} 17. Nh4
{[%clk 0:01:57]} 17... Bg4 {[%clk 0:01:21.2]} 18. f3 {[%clk 0:01:17.9]} 18...
exf3 {[%clk 0:01:04.6]} 19. Bxf3 {[%clk 0:01:14.3]} 19... fxg3 {[%clk
0:01:03.7]} 20. hxg3 {[%clk 0:00:54.2]} 20... Nxg3 {[%clk 0:01:01.7]} 21. Rf2
{[%clk 0:00:53.5]} 21... Ne4 {[%clk 0:00:37.1]} 22. Bxe4 {[%clk 0:00:46.3]}
22... Bxd1 {[%clk 0:00:37]} 23. Qxd1 {[%clk 0:00:44.9]} 23... Rxf2 {[%clk
0:00:35.9]} 24. Kxf2 {[%clk 0:00:45]} 24... Qh3 {[%clk 0:00:31.6]} 25. Nf3
{[%clk 0:00:22.5]} 25... Rf8 {[%clk 0:00:27.6]} 26. Ke2 {[%clk 0:00:15.3]} 26...
Qg2+ {[%clk 0:00:24]} 27. Ke3 {[%clk 0:00:14.8]} 27... h5 {[%clk 0:00:22.4]} 28.
Bc3 {[%clk 0:00:13.5]} 28... Bh6+ {[%clk 0:00:22.2]} 29. Kd3 {[%clk 0:00:13]}
29... h4 {[%clk 0:00:18.9]} 30. Qg1 {[%clk 0:00:08.5]} 30... Qxg1 {[%clk
0:00:18.8]} 31. Nxg1 {[%clk 0:00:08.9]} 31... Rf1 {[%clk 0:00:17.3]} 32. Nh3
{[%clk 0:00:08.7]} 32... Rd1+ {[%clk 0:00:14.6]} 33. Ke2 {[%clk 0:00:06.9]}
33... Ra1 {[%clk 0:00:14.7]} 34. Bxa1 {[%clk 0:00:06]} 1-0

[Event "Early-Titled-Tuesday-Blitz-June-18-2024"]
[Site "Chess.com"]
[Date "2024.06.18"]
[Round "9"]
[White "BirdMaster3000"]
[Black "Angry_Twin"]
[Result "0-1"]
[WhiteElo "2781"]
[BlackElo "2928"]
[TimeControl "180+1"]
[EndTime "9:46:38 PDT"]
[Termination "Angry_Twin won by resignation"]

1. f4 {[%clk 0:03:00.9]} 1... d5 {[%clk 0:02:59.8]} 2. Nf3 {[%clk 0:02:59.5]}
2... Nf6 {[%clk 0:03:00.3]} 3. e3 {[%clk 0:02:59.7]} 3... g6 {[%clk 0:02:59.8]}
4. b3 {[%clk 0:02:59.8]} 4... Bg7 {[%clk 0:03:00.2]} 5. Bb2 {[%clk 0:03:00.4]}
5... O-O {[%clk 0:03:00.9]} 6. Be2 {[%clk 0:03:00.9]} 6... c5 {[%clk 0:02:59]}
7. O-O {[%clk 0:03:01.2]} 7... Nc6 {[%clk 0:02:59.2]} 8. Ne5 {[%clk 0:03:01.8]}
8... Na5 {[%clk 0:02:56.9]} 9. Qc1 {[%clk 0:02:50.1]} 9... d4 {[%clk 0:02:52.3]}
10. Bf3 {[%clk 0:02:48.4]} 10... e6 {[%clk 0:02:46.9]} 11. c4 {[%clk 0:02:41.5]}
11... Nd7 {[%clk 0:02:42.1]} 12. exd4 {[%clk 0:02:40.5]} 12... cxd4 {[%clk
0:02:42.1]} 13. Nxd7 {[%clk 0:02:38.8]} 13... Bxd7 {[%clk 0:02:36.4]} 14. b4
{[%clk 0:02:34.7]} 14... Nc6 {[%clk 0:02:35.8]} 15. a3 {[%clk 0:02:35.1]} 15...
Rc8 {[%clk 0:02:35.3]} 16. d3 {[%clk 0:02:33.2]} 16... b6 {[%clk 0:02:24.1]} 17.
Nd2 {[%clk 0:02:26.2]} 17... Ne7 {[%clk 0:02:23.6]} 18. Qe1 {[%clk 0:02:10.7]}
18... Nf5 {[%clk 0:02:22.8]} 19. Qf2 {[%clk 0:02:10.7]} 19... Ne3 {[%clk
0:02:21.3]} 20. Rfc1 {[%clk 0:02:09.8]} 20... Qc7 {[%clk 0:02:19.5]} 21. Nb3
{[%clk 0:02:02.8]} 21... Qxf4 {[%clk 0:02:08]} 22. Bb7 {[%clk 0:02:02.3]} 22...
Qxf2+ {[%clk 0:02:07.8]} 23. Kxf2 {[%clk 0:02:03.2]} 23... Rc7 {[%clk
0:02:07.5]} 24. Bxd4 {[%clk 0:01:45]} 24... Ng4+ {[%clk 0:02:06.2]} 25. Kg3
{[%clk 0:01:44.8]} 25... e5 {[%clk 0:02:06.6]} 26. Bf3 {[%clk 0:01:41.8]} 26...
exd4 {[%clk 0:01:53.5]} 27. Bxg4 {[%clk 0:01:41.9]} 27... Be5+ {[%clk
0:01:54.1]} 28. Kh3 {[%clk 0:01:40]} 28... f5 {[%clk 0:01:27]} 29. Bf3 {[%clk
0:01:39.4]} 29... Bf4 {[%clk 0:01:24.9]} 30. Bd5+ {[%clk 0:01:26.6]} 30... Kg7
{[%clk 0:01:19.3]} 31. Nxd4 {[%clk 0:01:26.4]} 31... Bxc1 {[%clk 0:01:13.7]} 32.
Rxc1 {[%clk 0:01:27.3]} 32... f4+ {[%clk 0:01:14.2]} 33. g4 {[%clk 0:01:25.6]}
33... Re8 {[%clk 0:01:10.1]} 34. Rf1 {[%clk 0:01:08.3]} 34... Re3+ {[%clk
0:01:08.6]} 35. Rf3 {[%clk 0:01:00.7]} 35... h5 {[%clk 0:01:08.2]} 36. Kh4
{[%clk 0:01:00.3]} 36... Bxg4 {[%clk 0:00:52.8]} 37. Rxf4 {[%clk 0:00:56.8]}
37... Rce7 {[%clk 0:00:46.4]} 38. Nc6 {[%clk 0:00:53.4]} 38... Rd7 {[%clk
0:00:20.5]} 39. Kg5 {[%clk 0:00:48.4]} 39... Bf5 {[%clk 0:00:19.7]} 40. Be4
{[%clk 0:00:41]} 40... Bxe4 {[%clk 0:00:14.9]} 41. dxe4 {[%clk 0:00:41.9]} 41...
Rd1 {[%clk 0:00:09.7]} 42. Ne5 {[%clk 0:00:26]} 42... Rg1+ {[%clk 0:00:09.5]}
43. Kh4 {[%clk 0:00:24.8]} 43... g5+ {[%clk 0:00:09.6]} 44. Kxh5 {[%clk
0:00:25.4]} 44... gxf4 {[%clk 0:00:10.1]} 0-1

[Event "Early-Titled-Tuesday-Blitz-June-18-2024"]
[Site "Chess.com"]
[Date "2024.06.18"]
[Round "9"]
[White "Viktor_Poddubnyi"]
[Black "David_ATM"]
[Result "0-1"]
[WhiteElo "2316"]
[BlackElo "2419"]
[TimeControl "180+1"]
[EndTime "9:46:38 PDT"]
[Termination "David_ATM won on time"]

1. e4 {[%clk 0:03:00]} 1... e5 {[%clk 0:02:55.8]} 2. f4 {[%clk 0:02:59.3]} 2...
d6 {[%clk 0:02:55.8]} 3. Nf3 {[%clk 0:02:58.6]} 3... Nc6 {[%clk 0:02:55.6]} 4.
d4 {[%clk 0:02:58.1]} 4... exd4 {[%clk 0:02:55.2]} 5. Nxd4 {[%clk 0:02:59]} 5...
Nxd4 {[%clk 0:02:55.6]} 6. Qxd4 {[%clk 0:02:59.4]} 6... Nf6 {[%clk 0:02:56.1]}
7. Nc3 {[%clk 0:02:58.9]} 7... Be7 {[%clk 0:02:55.1]} 8. Be3 {[%clk 0:02:58.9]}
8... O-O {[%clk 0:02:55.4]} 9. O-O-O {[%clk 0:02:58.5]} 9... Re8 {[%clk
0:02:54.8]} 10. Be2 {[%clk 0:02:42]} 10... Bf8 {[%clk 0:02:52.2]} 11. Bf3 {[%clk
0:02:42]} 11... Bg4 {[%clk 0:02:49.8]} 12. Kb1 {[%clk 0:02:07]} 12... Bxf3
{[%clk 0:02:39.1]} 13. gxf3 {[%clk 0:02:07.9]} 13... g6 {[%clk 0:02:39.7]} 14.
Qd2 {[%clk 0:01:42.1]} 14... Bg7 {[%clk 0:02:34.3]} 15. f5 {[%clk 0:01:40.5]}
15... Nh5 {[%clk 0:02:34.4]} 16. Rhg1 {[%clk 0:01:30.2]} 16... b5 {[%clk
0:02:26.2]} 17. Nxb5 {[%clk 0:01:17.9]} 17... Rb8 {[%clk 0:02:25.3]} 18. Nc3
{[%clk 0:01:09.3]} 18... Qd7 {[%clk 0:02:08.1]} 19. Bd4 {[%clk 0:01:07.4]} 19...
Re5 {[%clk 0:01:45.1]} 20. f4 {[%clk 0:00:56]} 20... Ree8 {[%clk 0:01:14.1]} 21.
Bxg7 {[%clk 0:00:54.9]} 21... Nxg7 {[%clk 0:01:12.6]} 22. Nd5 {[%clk 0:00:49.6]}
22... Qd8 {[%clk 0:01:09.7]} 23. fxg6 {[%clk 0:00:40]} 23... hxg6 {[%clk
0:01:08.2]} 24. f5 {[%clk 0:00:34.2]} 24... c6 {[%clk 0:01:02.6]} 25. Nf4 {[%clk
0:00:32.2]} 25... g5 {[%clk 0:00:55.7]} 26. Ne2 {[%clk 0:00:12]} 26... Rxe4
{[%clk 0:00:55.4]} 27. Nc3 {[%clk 0:00:11.9]} 27... Rf4 {[%clk 0:00:49.2]} 28.
Qxd6 {[%clk 0:00:09.2]} 28... Qxd6 {[%clk 0:00:46.4]} 29. Rxd6 {[%clk
0:00:10.1]} 29... Rxf5 {[%clk 0:00:47]} 30. Rxc6 {[%clk 0:00:10.1]} 30... Ne6
{[%clk 0:00:46.5]} 31. Ra6 {[%clk 0:00:07.5]} 31... Kg7 {[%clk 0:00:40.6]} 32.
Rxa7 {[%clk 0:00:06.2]} 32... Rh8 {[%clk 0:00:41.3]} 33. a4 {[%clk 0:00:03.2]}
33... Rxh2 {[%clk 0:00:41.3]} 34. a5 {[%clk 0:00:03.2]} 34... Rff2 {[%clk
0:00:33.8]} 35. Rc1 {[%clk 0:00:02.8]} 35... Nd4 {[%clk 0:00:29.5]} 36. Ne4
{[%clk 0:00:02.9]} 36... Rfg2 {[%clk 0:00:29.2]} 37. Nd6 {[%clk 0:00:02.5]}
37... Nxc2 {[%clk 0:00:28]} 38. Rxf7+ {[%clk 0:00:01.3]} 38... Kg6 {[%clk
0:00:28.6]} 0-1

[Event "Early-Titled-Tuesday-Blitz-June-18-2024"]
[Site "Chess.com"]
[Date "2024.06.18"]
[Round "9"]
[White "Zampronha1971"]
[Black "Lupul_Cenusiu"]
[Result "1-0"]
[WhiteElo "2411"]
[BlackElo "2693"]
[TimeControl "180+1"]
[EndTime "9:46:39 PDT"]
[Termination "Zampronha1971 won on time"]

1. e4 {[%clk 0:03:00.9]} 1... c6 {[%clk 0:03:00.2]} 2. d4 {[%clk 0:03:00.3]}
2... d5 {[%clk 0:03:01.1]} 3. e5 {[%clk 0:03:00.5]} 3... Bf5 {[%clk 0:03:01.6]}
4. Nc3 {[%clk 0:02:59.3]} 4... e6 {[%clk 0:03:00.8]} 5. g4 {[%clk 0:02:59.8]}
5... Bg6 {[%clk 0:03:01.5]} 6. Nge2 {[%clk 0:02:59.5]} 6... c5 {[%clk 0:02:58]}
7. Nf4 {[%clk 0:02:54.8]} 7... Nc6 {[%clk 0:02:50.5]} 8. Bb5 {[%clk 0:02:51.4]}
8... a6 {[%clk 0:02:38.9]} 9. Bxc6+ {[%clk 0:02:50.7]} 9... bxc6 {[%clk
0:02:39.8]} 10. h4 {[%clk 0:02:50.5]} 10... cxd4 {[%clk 0:02:33.5]} 11. Qxd4
{[%clk 0:02:50.2]} 11... c5 {[%clk 0:01:41.9]} 12. Qa4+ {[%clk 0:02:48.6]} 12...
Qd7 {[%clk 0:01:42.1]} 13. Qxd7+ {[%clk 0:02:45.5]} 13... Kxd7 {[%clk 0:01:43]}
14. Na4 {[%clk 0:02:41]} 14... Be4 {[%clk 0:01:37.6]} 15. O-O {[%clk 0:02:39.2]}
15... Bf3 {[%clk 0:01:33.7]} 16. Nb6+ {[%clk 0:02:36.2]} 16... Kc6 {[%clk
0:01:30.7]} 17. Nxa8 {[%clk 0:02:37.1]} 17... Bxg4 {[%clk 0:01:25.9]} 18. Bd2
{[%clk 0:02:21.8]} 18... Kb7 {[%clk 0:01:24.5]} 19. c4 {[%clk 0:02:19.7]} 19...
d4 {[%clk 0:01:17.9]} 20. b4 {[%clk 0:02:10.4]} 20... Kxa8 {[%clk 0:01:18.1]}
21. bxc5 {[%clk 0:02:09.5]} 21... Bxc5 {[%clk 0:01:19]} 22. Nd3 {[%clk
0:01:59.6]} 22... Be7 {[%clk 0:01:12.8]} 23. Rfe1 {[%clk 0:01:57.9]} 23... Nh6
{[%clk 0:00:54.9]} 24. Bxh6 {[%clk 0:01:38.3]} 24... gxh6 {[%clk 0:00:54.9]} 25.
Re4 {[%clk 0:01:38.3]} 25... Rg8 {[%clk 0:00:50.5]} 26. Rxd4 {[%clk 0:01:36.9]}
26... Bxh4 {[%clk 0:00:33.3]} 27. Kf1 {[%clk 0:01:33.4]} 27... Bd8 {[%clk
0:00:27.8]} 28. Rb1 {[%clk 0:01:22.6]} 28... h5 {[%clk 0:00:26.6]} 29. Kg2
{[%clk 0:00:49.2]} 29... h4 {[%clk 0:00:24.3]} 30. Kh2 {[%clk 0:00:48]} 30... h5
{[%clk 0:00:16.4]} 31. Rg1 {[%clk 0:00:46.1]} 31... Bb6 {[%clk 0:00:14.2]} 32.
c5 {[%clk 0:00:44.9]} 32... Bc7 {[%clk 0:00:14.1]} 33. f3 {[%clk 0:00:44.8]}
33... f6 {[%clk 0:00:11.2]} 34. fxg4 {[%clk 0:00:43.5]} 34... fxe5 {[%clk
0:00:11.7]} 35. Re4 {[%clk 0:00:39.2]} 35... hxg4 {[%clk 0:00:11.8]} 36. Kg2
{[%clk 0:00:26.1]} 36... Rd8 {[%clk 0:00:08.8]} 37. Rd1 {[%clk 0:00:23.6]} 37...
Kb7 {[%clk 0:00:02.9]} 38. Rxg4 {[%clk 0:00:20.7]} 38... e4 {[%clk 0:00:01.8]}
39. Rxe4 {[%clk 0:00:20.5]} 1-0

[Event "Early-Titled-Tuesday-Blitz-June-18-2024"]
[Site "Chess.com"]
[Date "2024.06.18"]
[Round "9"]
[White "Kirill_Klukin"]
[Black "NailBashirli"]
[Result "1-0"]
[WhiteElo "2876"]
[BlackElo "2749"]
[TimeControl "180+1"]
[EndTime "9:46:41 PDT"]
[Termination "Kirill_Klukin won by resignation"]

1. d4 {[%clk 0:03:00.9]} 1... Nf6 {[%clk 0:02:56.9]} 2. Nf3 {[%clk 0:03:01.1]}
2... e6 {[%clk 0:02:54.7]} 3. e3 {[%clk 0:03:01.6]} 3... b6 {[%clk 0:02:49.1]}
4. Bd3 {[%clk 0:03:02]} 4... Bb7 {[%clk 0:02:49.4]} 5. O-O {[%clk 0:03:02]} 5...
g6 {[%clk 0:02:47]} 6. b3 {[%clk 0:03:01.6]} 6... Bg7 {[%clk 0:02:46.9]} 7. Bb2
{[%clk 0:03:02.2]} 7... O-O {[%clk 0:02:47.7]} 8. c4 {[%clk 0:03:02.5]} 8... d6
{[%clk 0:02:47.7]} 9. Nc3 {[%clk 0:03:02.7]} 9... Nbd7 {[%clk 0:02:46.1]} 10.
Qe2 {[%clk 0:03:03.1]} 10... Qe7 {[%clk 0:02:46]} 11. Rfd1 {[%clk 0:03:03.1]}
11... c5 {[%clk 0:02:46.1]} 12. a3 {[%clk 0:02:59.4]} 12... Rac8 {[%clk
0:02:39.9]} 13. h3 {[%clk 0:02:57.1]} 13... Rfd8 {[%clk 0:02:39.3]} 14. Rac1
{[%clk 0:02:56.6]} 14... Nf8 {[%clk 0:02:38.5]} 15. b4 {[%clk 0:02:50.4]} 15...
d5 {[%clk 0:02:29.5]} 16. cxd5 {[%clk 0:02:44.4]} 16... cxd4 {[%clk 0:02:20.1]}
17. d6 {[%clk 0:02:21.2]} 17... Qxd6 {[%clk 0:02:10.1]} 18. Nb5 {[%clk
0:02:19.1]} 18... Qb8 {[%clk 0:02:06.5]} 19. Bxd4 {[%clk 0:02:15.2]} 19... a6
{[%clk 0:01:55.3]} 20. Nc3 {[%clk 0:01:29.6]} 20... b5 {[%clk 0:01:11.1]} 21.
Ne5 {[%clk 0:01:12.7]} 21... Qa8 {[%clk 0:01:04.5]} 22. f3 {[%clk 0:01:12.4]}
22... Ne8 {[%clk 0:00:55.6]} 23. Be4 {[%clk 0:01:03.8]} 23... f6 {[%clk
0:00:52.3]} 24. Ng4 {[%clk 0:00:51.8]} 24... h5 {[%clk 0:00:35.6]} 25. Nf2
{[%clk 0:00:46.4]} 25... e5 {[%clk 0:00:32.2]} 26. Bc5 {[%clk 0:00:45.4]} 26...
Bxe4 {[%clk 0:00:28.3]} 27. Ncxe4 {[%clk 0:00:45.5]} 27... Kh7 {[%clk
0:00:17.7]} 28. Qa2 {[%clk 0:00:40.8]} 28... Qb7 {[%clk 0:00:17.5]} 29. g4
{[%clk 0:00:34.9]} 29... h4 {[%clk 0:00:16]} 30. f4 {[%clk 0:00:30]} 30... exf4
{[%clk 0:00:15.2]} 31. exf4 {[%clk 0:00:30.9]} 31... Rxd1+ {[%clk 0:00:11.2]}
32. Rxd1 {[%clk 0:00:31.8]} 32... Rc7 {[%clk 0:00:08.8]} 33. Rd8 {[%clk
0:00:25.9]} 33... Qc6 {[%clk 0:00:05.5]} 34. Bxf8 {[%clk 0:00:17.4]} 34... Bxf8
{[%clk 0:00:02.8]} 35. Rxe8 {[%clk 0:00:18]} 35... Qc1+ {[%clk 0:00:02.1]} 36.
Kg2 {[%clk 0:00:18.4]} 36... Bg7 {[%clk 0:00:02.3]} 37. Qg8+ {[%clk 0:00:17.4]}
37... Kh6 {[%clk 0:00:02.8]} 38. g5+ {[%clk 0:00:18]} 38... fxg5 {[%clk
0:00:02.9]} 39. fxg5+ {[%clk 0:00:18.9]} 39... Kh5 {[%clk 0:00:03.6]} 40. Qh7+
{[%clk 0:00:19]} 1-0

[Event "Early-Titled-Tuesday-Blitz-June-18-2024"]
[Site "Chess.com"]
[Date "2024.06.18"]
[Round "9"]
[White "rasmussvane"]
[Black "Flawless_Fighter"]
[Result "1-0"]
[WhiteElo "2973"]
[BlackElo "2815"]
[TimeControl "180+1"]
[EndTime "9:46:45 PDT"]
[Termination "rasmussvane won by resignation"]

1. Nf3 {[%clk 0:03:00.9]} 1... d5 {[%clk 0:02:59.8]} 2. g3 {[%clk 0:02:59.2]}
2... Nf6 {[%clk 0:02:59.8]} 3. Bg2 {[%clk 0:02:59.7]} 3... e6 {[%clk 0:03:00.5]}
4. O-O {[%clk 0:03:00.1]} 4... Be7 {[%clk 0:03:01.2]} 5. c4 {[%clk 0:03:00.7]}
5... O-O {[%clk 0:03:01.6]} 6. b3 {[%clk 0:03:01.3]} 6... b6 {[%clk 0:03:01.7]}
7. d4 {[%clk 0:03:00.4]} 7... Bb7 {[%clk 0:03:01.9]} 8. Nc3 {[%clk 0:03:00.8]}
8... dxc4 {[%clk 0:03:00.4]} 9. bxc4 {[%clk 0:03:01.7]} 9... c5 {[%clk
0:02:56.4]} 10. d5 {[%clk 0:03:01.9]} 10... exd5 {[%clk 0:02:54.5]} 11. Nh4
{[%clk 0:03:01.5]} 11... Ne4 {[%clk 0:01:44.3]} 12. Nxd5 {[%clk 0:03:00.2]}
12... Bxd5 {[%clk 0:01:44.9]} 13. cxd5 {[%clk 0:03:01.1]} 13... Bf6 {[%clk
0:01:23.6]} 14. Bxe4 {[%clk 0:03:01.5]} 14... Bxa1 {[%clk 0:01:23.6]} 15. d6
{[%clk 0:03:02.2]} 15... Nd7 {[%clk 0:01:22.5]} 16. Qc2 {[%clk 0:02:46.8]} 16...
Bf6 {[%clk 0:01:13.3]} 17. Nf3 {[%clk 0:02:40.2]} 17... g6 {[%clk 0:00:59.1]}
18. Rd1 {[%clk 0:01:42.7]} 18... Rc8 {[%clk 0:00:56.2]} 19. h4 {[%clk
0:01:32.7]} 19... Re8 {[%clk 0:00:46.3]} 20. h5 {[%clk 0:01:31.2]} 20... Kg7
{[%clk 0:00:41.6]} 21. Kg2 {[%clk 0:01:30.6]} 21... c4 {[%clk 0:00:39.3]} 22.
Rh1 {[%clk 0:01:15]} 22... Rxe4 {[%clk 0:00:36.5]} 23. Qxe4 {[%clk 0:01:14.1]}
23... Qe8 {[%clk 0:00:33.7]} 24. Qg4 {[%clk 0:00:55.8]} 24... Rc5 {[%clk
0:00:19.6]} 25. Be3 {[%clk 0:00:36.3]} 25... Rc6 {[%clk 0:00:09.9]} 26. hxg6
{[%clk 0:00:31.2]} 26... fxg6 {[%clk 0:00:10]} 27. Nd4 {[%clk 0:00:25.9]} 27...
Rc5 {[%clk 0:00:03.3]} 28. Ne6+ {[%clk 0:00:24.4]} 28... Kg8 {[%clk 0:00:03.8]}
29. Nxc5 {[%clk 0:00:23.2]} 29... bxc5 {[%clk 0:00:04.2]} 30. Qxc4+ {[%clk
0:00:18.6]} 30... Kg7 {[%clk 0:00:04.7]} 31. Bh6+ {[%clk 0:00:17]} 31... Kh8
{[%clk 0:00:04.4]} 32. e4 {[%clk 0:00:15.9]} 32... Qe5 {[%clk 0:00:03.7]} 33.
Bf4 {[%clk 0:00:15.5]} 33... Qe8 {[%clk 0:00:03.4]} 34. Re1 {[%clk 0:00:13.5]}
34... Bd4 {[%clk 0:00:03.8]} 35. e5 {[%clk 0:00:13.3]} 35... Qa8+ {[%clk
0:00:04.3]} 36. f3 {[%clk 0:00:12.3]} 36... Qb7 {[%clk 0:00:04.1]} 37. e6 {[%clk
0:00:11.9]} 37... Qb2+ {[%clk 0:00:04.3]} 38. Qe2 {[%clk 0:00:12.2]} 1-0